bitfinex/quotes_ETHUSD_20250529
["timestamp","ask_amount","ask_price","bid_price","bid_amount"]
[1748562589622,1.47422763,2621.9,2621.2,3.8149578]
[1748562589780,1.47422763,2621.9,2621.3,3.81487169]
[1748562590504,5.28830093,2621.9,2621.2,3.8150197]
[1748562590705,1.47422763,2621.9,2621.1,8.0]
[1748562590926,1.47422763,2621.9,2620.3,10.0]
[1748562591091,3.81482957,2621.4,2620.7,3.81570003]
[1748562591423,6.8555,2621.3,2620.8,3.81552307]
[1748562591626,5.859,2621.2,2620.7,10.0]
[1748562591772,5.859,2621.2,2620.7,3.81563864]
[1748562592210,5.859,2621.2,2620.4,3.81618181]
[1748562592418,9.67405302,2621.2,2620.6,10.0]
[1748562592618,3.81520242,2621.1,2620.4,3.81614142]
[1748562592822,9.67412031,2621.2,2620.5,3.81605646]
[1748562593023,3.81519419,2621.1,2620.5,10.0]
[1748562593230,9.67412042,2621.2,2620.5,3.81605582]
[1748562593380,1.03,2621.0,2620.0,3.81679389]
[1748562593583,6.91114326,2621.8,2620.0,3.81679389]
[1748562593584,1.03,2622.1,2620.8,3.81552977]
[1748562593779,4.84453754,2621.6,2620.9,3.81539928]
[1748562594091,4.84453754,2621.6,2620.6,10.0]
[1748562594092,1.03,2621.6,2620.6,10.0]
[1748562594295,1.03,2621.6,2621.5,3.81460995]
[1748562594530,1.03,2622.0,2621.5,3.81460995]
[1748562594695,5.814,2621.9,2621.1,8.0]
[1748562594900,5.811,2621.8,2621.3,3.81481851]
[1748562595608,5.811,2621.8,2621.4,13.81470757]
[1748562595814,3.8131391,2622.6,2621.4,13.81470757]
[1748562595815,1.03,2622.7,2621.5,5.816612]
[1748562596120,5.794,2622.6,2622.1,3.81373605]
[1748562596283,5.79,2622.5,2622.3,3.81337426]
[1748562596479,1.03,2622.7,2622.3,3.81337426]
[1748562596709,1.03,2622.7,2622.4,3.8132978]
[1748562596710,5.786,2622.6,2622.4,3.8132978]
[1748562596927,1.03,2622.7,2622.4,3.8132978]
[1748562597228,3.8120051,2623.3,2622.6,3.81300999]
[1748562597396,5.773,2623.2,2622.5,8.0]
[1748562597723,0.9658,2623.3,2623.2,3.81213784]
[1748562598128,6.7328,2623.3,2622.8,10.0]
[1748562598328,6.7328,2623.3,2622.8,3.81264325]
[1748562598627,6.7328,2623.3,2623.0,3.81234883]
[1748562598812,6.7328,2623.3,2623.1,3.81224425]
[1748562599012,7.40608,2623.3,2622.3,8.0]
[1748562599237,7.40608,2623.3,2622.6,10.0]
[1748562599436,7.40608,2623.3,2622.8,3.81270019]
[1748562599640,7.40608,2623.3,2622.8,13.81266285]
[1748562599641,1.63908,2623.3,2622.8,13.81266285]
[1748562599952,5.743,2623.2,2622.5,10.0]
[1748562600254,5.743,2623.2,2622.1,8.0]
[1748562600255,0.9658,2623.3,2623.0,3.81242632]
[1748562600623,0.9658,2623.3,2623.1,3.81228317]
[1748562600832,5.727,2623.2,2623.1,3.81228317]
[1748562601160,5.727,2623.2,2622.8,3.81265834]
[1748562601350,5.727,2623.2,2622.9,2.1102]
[1748562601559,3.81228317,2623.1,2621.7,0.9524]
[1748562601716,3.8128025,2622.8,2622.1,3.81361921]
[1748562601915,5.714,2622.7,2622.2,10.0]
[1748562602130,5.714,2622.7,2621.9,8.0]
[1748562602327,5.714,2622.7,2621.8,8.0]
[1748562602528,0.72342143,2622.6,2621.8,3.81410704]
[1748562602754,1.0565,2622.4,2621.3,1.0377]
[1748562602959,1.0565,2622.4,2621.7,3.81430703]
[1748562603155,1.0565,2622.4,2621.5,13.81460995]
[1748562603331,3.8137272,2622.2,2621.6,0.31842485]
[1748562603529,6.07137272,2622.1,2621.6,4.132766]
[1748562603729,6.07137272,2622.1,2621.6,10.31842485]
[1748562603969,6.07137272,2622.1,2621.6,0.31842485]
[1748562604126,6.07137272,2622.1,2621.6,10.31842485]
[1748562604335,4.86982472,2622.4,2621.7,3.721223]
[1748562604336,5.682,2622.0,2621.7,3.721223]
[1748562604535,1.0565,2623.0,2621.7,10.63236626]
[1748562604736,5.678,2622.9,2622.0,10.0]
[1748562604921,1.0565,2623.0,2622.5,3.81307738]
[1748562605122,1.0565,2623.0,2621.9,10.0]
[1748562605123,5.67,2622.9,2622.3,3.81337085]
[1748562605318,1.0565,2623.0,2622.6,3.953766]
[1748562605568,1.0565,2623.0,2622.1,3.81373708]
[1748562605569,5.665,2622.9,2622.3,8.0]
[1748562605744,3.81272303,2622.8,2622.2,10.0]
[1748562606060,3.81272303,2622.8,2621.9,8.0]
[1748562606061,3.81271923,2622.8,2621.5,1.0377]
[1748562606271,9.47760443,2622.9,2621.8,8.0]
[1748562606581,9.47760443,2622.9,2621.4,10.0]
[1748562606582,1.0475,2622.3,2621.4,10.0]
[1748562606787,1.0475,2622.3,2620.8,1.0489]
[1748562606788,3.8142915,2621.8,2620.8,1.0489]
[1748562607093,2.232,2622.6,2621.6,10.31842485]
[1748562607094,0.35653458,2622.6,2621.6,10.31842485]
[1748562607290,5.645,2622.5,2621.6,0.31842485]
[1748562607435,5.645,2622.5,2622.0,3.81385557]
[1748562607784,5.645,2622.5,2621.6,0.31842485]
[1748562607785,5.645,2622.5,2621.9,8.01801]
[1748562607995,0.9578,2622.8,2622.0,8.0]
[1748562608298,0.9578,2622.8,2622.6,3.81300999]
[1748562608438,3.81308578,2622.6,2621.6,11.81443873]
[1748562608791,4.75747035,2622.5,2621.9,10.0]
[1748562609085,0.94430858,2622.5,2621.7,10.0]
[1748562609329,0.94430858,2622.5,2621.8,2.119]
[1748562609452,0.94430858,2622.5,2622.0,3.81381538]
[1748562609789,0.8,2622.3,2622.0,3.81379002]
[1748562609937,0.8,2622.3,2622.1,3.81368166]
[1748562610138,0.8,2622.3,2622.2,3.81359164]
[1748562610377,0.8,2622.3,2622.2,28.86306223]
[1748562610378,0.2125,2622.3,2622.2,28.86306223]
[1748562610595,0.58873023,2624.3,2622.2,28.86306223]
[1748562610596,5.604,2623.0,2622.6,2.906893]
[1748562610764,0.9578,2623.8,2622.8,3.81270271]
[1748562610765,5.604,2622.9,2622.8,3.81270271]
[1748562610962,4.76910391,2623.8,2623.1,3.81222404]
[1748562611153,5.6,2623.7,2623.2,3.81212359]
[1748562611344,0.9578,2623.8,2622.7,3.81284808]
[1748562611345,0.9578,2623.8,2623.0,3.81242851]
[1748562611538,0.9578,2623.8,2622.6,6.91114326]
[1748562611539,5.596,2623.7,2623.4,3.81171736]
[1748562611743,5.596,2623.7,2623.3,3.81190889]
[1748562611967,5.596,2623.7,2623.2,3.81204421]
[1748562612187,5.585,2623.6,2623.2,3.81204421]
[1748562612511,6.23928,2623.6,2622.5,3.81314262]
[1748562612795,0.65428,2623.6,2622.2,8.67387059]
[1748562612974,6.5567,2623.5,2622.8,3.81271923]
[1748562613175,6.5567,2623.5,2622.9,3.8124796]
[1748562613355,6.5567,2623.5,2622.4,10.0]
[1748562613356,6.5567,2623.5,2622.6,3.8130049]
[1748562613545,3.81184722,2623.4,2622.7,10.0]
[1748562613744,3.81184722,2623.4,2622.7,3.812751]
[1748562614002,0.73842143,2623.3,2622.7,3.812751]
[1748562614298,6.5567,2623.5,2622.5,8.0]
[1748562614299,0.9797,2623.5,2622.5,8.0]
[1748562614506,5.557,2623.2,2623.1,3.81228317]
[1748562614875,5.557,2623.2,2623.0,3.81236242]
[1748562615075,5.557,2623.2,2622.9,3.81256622]
[1748562615405,6.1127,2623.2,2622.7,10.0]
[1748562615889,6.1127,2623.2,2622.6,3.81292711]
[1748562615890,0.9797,2623.5,2622.9,3.81253994]
[1748562616062,5.538,2623.1,2622.3,3.81342179]
[1748562616263,5.538,2623.1,2622.7,3.81272023]
[1748562616469,5.538,2623.1,2622.3,3.81337171]
[1748562616661,3.81243126,2623.0,2622.4,13.81329797]
[1748562616905,3.81248846,2623.0,2622.4,10.0]
[1748562617076,3.81248846,2623.0,2622.5,10.0]
[1748562617406,4.7914207,2623.5,2622.9,3.81248775]
[1748562617407,0.9797,2623.5,2622.9,3.81248775]
[1748562617606,5.52,2623.4,2622.8,3.81271862]
[1748562617778,5.52,2623.4,2622.9,5.91257153]
[1748562617979,6.16997,2623.4,2622.2,8.0]
[1748562618180,0.64997,2623.4,2622.3,10.0]
[1748562618387,0.9797,2623.5,2623.3,3.81188863]
[1748562618691,0.9797,2623.5,2622.1,1.0354]
[1748562618692,5.51,2623.4,2622.3,8.0]
[1748562618894,9.32187476,2623.4,2622.6,3.81286592]
[1748562619094,5.51,2623.4,2623.0,3.81230705]
[1748562619306,5.51,2623.4,2622.7,3.8128646]
[1748562619511,0.9797,2623.5,2623.1,3.81228166]
[1748562619712,5.5,2623.3,2623.2,3.81213784]
[1748562619917,5.5,2623.3,2622.7,11.18128646]
[1748562620074,5.5,2623.3,2623.2,3.81213784]
[1748562620275,5.5,2623.3,2623.1,3.81220661]
[1748562620475,1.0189,2623.8,2622.9,10.0]
[1748562620685,5.485,2623.7,2622.8,1.0338]
[1748562620887,5.485,2623.7,2623.2,3.81206499]
[1748562621815,1.0189,2623.8,2623.4,3.81184424]
[1748562621987,1.0189,2623.8,2623.6,3.81147281]
[1748562622191,4.25559624,2624.7,2623.1,3.81228317]
[1748562622192,1.0189,2624.2,2623.2,10.0]
[1748562622522,1.0189,2624.2,2624.1,3.81083037]
[1748562622682,0.9967,2624.8,2622.9,3.81254703]
[1748562623017,0.9967,2624.8,2622.5,2.057]
[1748562623018,5.458,2624.7,2623.4,28.0]
[1748562623220,5.458,2624.7,2624.2,3.81065818]
[1748562623519,5.458,2624.7,2624.4,3.81036745]
[1748562623718,5.448,2624.6,2624.4,3.81036745]
[1748562623918,5.447,2624.5,2624.3,3.81052313]
[1748562624108,0.9967,2625.2,2624.1,13.81083037]
[1748562624291,0.9967,2625.2,2624.7,3.80987897]
[1748562624292,5.443,2625.1,2624.7,3.80987897]
[1748562624492,5.44,2625.0,2624.4,3.81037571]
[1748562624720,5.19,2625.0,2624.8,3.80972997]
[1748562625085,5.19,2625.0,2624.3,11.81051084]
[1748562625086,5.19,2625.0,2624.7,3.80995041]
[1748562625426,5.19,2625.0,2624.8,3.80980976]
[1748562625823,5.19,2625.0,2624.9,3.80966893]
[1748562626030,5.19,2625.0,2624.8,3.80977118]
[1748562626199,5.19,2625.0,2624.9,3.80966893]
[1748562626840,4.16666667,2625.3,2625.1,3.80937869]
[1748562626983,4.68182334,2625.3,2624.9,3.80957148]
[1748562627189,5.407,2625.2,2624.8,3.80981108]
[1748562627616,5.407,2625.2,2624.8,3.80980225]
[1748562628018,5.407,2625.2,2624.3,11.81052211]
[1748562628019,5.407,2625.2,2623.9,1.0407]
[1748562628226,3.80974519,2624.9,2624.2,3.81063783]
[1748562628402,0.38097452,2624.8,2624.2,3.8106158]
[1748562628604,5.392,2624.7,2624.1,3.81079611]
[1748562628801,5.392,2624.7,2624.0,3.81092105]
[1748562629001,5.392,2624.7,2623.9,11.0407]
[1748562629002,3.81010439,2624.6,2623.9,10.0]
[1748562629348,9.20200534,2624.7,2624.0,3.81095907]
[1748562629562,0.9659,2624.5,2624.0,10.0]
[1748562630064,0.9659,2624.5,2623.5,11.0407]
[1748562630365,0.9659,2624.5,2623.9,3.81107204]
[1748562630572,0.9659,2624.5,2623.6,0.31818211]
[1748562630768,0.9659,2624.4,2623.6,0.31818211]
[1748562630982,0.9659,2624.4,2624.1,3.81075218]
[1748562631159,5.366,2624.3,2623.8,10.0]
[1748562631320,5.366,2624.3,2623.8,3.81118769]
[1748562631515,5.366,2624.3,2623.8,10.0]
[1748562631716,1.01423272,2624.2,2623.8,10.0]
[1748562631972,0.9659,2624.4,2624.1,3.81081011]
[1748562632148,5.356,2624.3,2624.1,3.81081011]
[1748562632350,5.356,2624.3,2623.7,3.81133857]
[1748562632554,5.356,2624.3,2623.8,3.81123325]
[1748562632725,0.9659,2624.4,2623.4,3.81184722]
[1748562632921,5.82261705,2624.3,2623.8,3.81117739]
[1748562633200,5.82261705,2624.3,2623.9,10.0]
[1748562633387,9.63325137,2624.3,2623.6,3.81154965]
[1748562633517,5.82261705,2624.3,2623.7,3.81138612]
[1748562634051,5.82261705,2624.3,2623.8,10.0]
[1748562634232,0.6788517,2624.2,2623.7,3.81138612]
[1748562634744,0.6788517,2624.2,2623.9,3.81109822]
[1748562634961,5.322,2624.1,2624.0,3.81094732]
[1748562635357,5.322,2624.1,2623.8,3.81117867]
[1748562635516,5.316,2624.0,2623.7,3.81136934]
[1748562635718,5.316,2624.0,2623.4,10.0]
[1748562635960,5.309,2623.9,2623.4,18.91049377]
[1748562636162,5.309,2623.9,2623.8,3.8112661]
[1748562636486,4.19079905,2624.8,2623.8,14.693963]
[1748562636761,6.2695,2624.7,2623.5,10.0]
[1748562636922,0.9665,2624.0,2623.4,3.81182269]
[1748562637126,5.296,2623.9,2623.4,3.81182269]
[1748562637633,5.296,2623.9,2623.5,3.81166606]
[1748562637854,5.92225,2623.9,2623.5,7.13270192]
[1748562638067,5.92225,2623.9,2623.4,10.0]
[1748562638224,5.92225,2623.9,2623.3,3.81189918]
[1748562638560,5.92225,2623.9,2623.4,3.81182238]
[1748562638886,3.81150309,2623.7,2623.2,10.0]
[1748562639043,0.38115031,2623.6,2623.1,3.81226502]
[1748562639239,5.75463793,2624.3,2623.1,3.81226502]
[1748562639240,0.9665,2624.4,2623.3,0.9941]
[1748562639460,5.272,2624.3,2623.8,3.81119485]
[1748562639840,5.272,2624.3,2623.9,3.81105826]
[1748562640039,5.266,2624.2,2623.9,3.81105826]
[1748562640336,0.9665,2624.4,2623.7,3.81139083]
[1748562640337,0.9665,2624.4,2623.8,3.81119536]
[1748562640536,0.47767668,2624.3,2623.8,3.8112661]
[1748562640848,4.16666667,2625.3,2623.4,8.0]
[1748562640849,1.0138,2625.1,2624.1,0.9931]
[1748562641051,1.0138,2625.1,2624.3,10.0]
[1748562641280,5.255,2625.0,2624.7,3.80989133]
[1748562641565,1.0138,2625.1,2624.9,3.80961825]
[1748562641750,5.253,2625.0,2624.9,3.80961825]
[1748562642063,4.16666667,2625.3,2625.0,3.8095238]
[1748562642230,5.247,2625.2,2624.9,3.80961838]
[1748562642432,4.58333334,2625.3,2625.0,2.5621]
[1748562642631,4.58333334,2625.3,2624.8,10.0]
[1748562642632,5.24,2625.2,2624.8,10.0]
[1748562642879,5.24,2625.2,2624.6,3.81005297]
[1748562643144,5.24,2625.2,2624.8,10.0]
[1748562643480,4.16666667,2625.3,2624.8,10.0]
[1748562643481,4.16666667,2625.3,2625.2,7.42876958]
[1748562643760,9.39566667,2625.3,2625.0,12.129]
[1748562643961,9.39566667,2625.3,2625.1,13.80930126]
[1748562644169,9.39566667,2625.3,2625.2,5.91923358]
[1748562644536,4.16666667,2625.3,2625.2,5.91923358]
[1748562644850,9.38466667,2625.3,2625.2,2.11]
[1748562645047,9.38466667,2625.3,2625.2,5.91923358]
[1748562645247,9.38466667,2625.3,2625.2,2.11]
[1748562645456,10.32313334,2625.3,2624.9,11.8096066]
[1748562645636,10.32313334,2625.3,2624.9,8.0]
[1748562645821,10.32313334,2625.3,2624.5,4.80362801]
[1748562646024,0.956,2625.2,2624.7,3.80994892]
[1748562646249,0.956,2625.2,2624.9,3.80959481]
[1748562646421,1.12791333,2625.1,2624.7,2.442071]
[1748562646641,5.202,2625.0,2624.9,3.80956444]
[1748562647240,5.202,2625.0,2624.8,3.80976547]
[1748562647453,5.202,2625.0,2624.6,8.0]
[1748562647655,5.189,2624.9,2624.8,10.0]
[1748562647853,5.189,2624.9,2624.8,10.0191]
[1748562648369,5.189,2624.9,2624.8,13.82891408]
[1748562649073,4.16666667,2625.3,2625.1,3.80928054]
[1748562649286,4.58333334,2625.3,2625.2,3.80923358]
[1748562649568,9.75833334,2625.3,2625.1,3.80931245]
[1748562649733,9.75833334,2625.3,2625.2,3.80923358]
[1748562649936,9.75833334,2625.3,2625.0,10.0]
[1748562650154,0.97583333,2625.2,2625.0,10.0]
[1748562650330,5.163,2625.1,2625.0,10.0]
[1748562650539,5.163,2625.1,2625.0,13.8095238]
[1748562651374,5.163,2625.1,2624.7,11.80988914]
[1748562651580,0.97583333,2625.2,2624.6,8.0]
[1748562651775,4.58333334,2625.3,2625.1,3.80937869]
[1748562652004,5.148,2625.2,2625.1,3.80926781]
[1748562652541,4.16666667,2625.3,2625.2,20.92687158]
[1748562652735,9.30766667,2625.3,2625.2,11.80923358]
[1748562653374,9.30766667,2625.3,2625.2,13.95755658]
[1748562654371,9.29266667,2625.3,2625.2,13.95755658]
[1748562655076,9.28366667,2625.3,2625.2,15.83550902]
[1748562655275,9.28366667,2625.3,2625.2,13.95755658]
[1748562655792,4.16666667,2625.3,2625.2,13.95755658]
[1748562655976,9.27466667,2625.3,2625.2,13.95755658]
[1748562656291,4.16666667,2625.3,2625.2,13.95755658]
[1748562656596,9.26966667,2625.3,2625.2,13.95755658]
[1748562656742,4.16666667,2625.3,2625.2,13.95755658]
[1748562657103,9.26666667,2625.3,2625.2,14.69321897]
[1748562657691,4.16666667,2625.3,2625.2,14.69321897]
[1748562657887,9.25766667,2625.3,2625.2,14.69321897]
[1748562658191,9.25766667,2625.3,2625.2,13.95755658]
[1748562659052,4.16666667,2625.3,2625.2,13.95755658]
[1748562659254,9.24566667,2625.3,2625.2,13.95755658]
[1748562659464,4.16666667,2625.3,2625.2,13.95755658]
[1748562659672,9.24266667,2625.3,2625.2,13.95755658]
[1748562660278,0.9498,2626.4,2625.2,13.95755658]
[1748562660279,0.9498,2626.4,2626.1,3.80781086]
[1748562660491,5.068,2626.3,2626.1,3.80786449]
[1748562660801,5.065,2626.2,2626.0,3.80799262]
[1748562660963,5.065,2626.2,2625.6,4.8336837]
[1748562661162,5.065,2626.2,2625.9,3.80816969]
[1748562661395,5.66648,2626.2,2625.9,3.80816969]
[1748562661603,0.60148,2626.2,2625.6,10.0]
[1748562661804,5.056,2626.1,2625.1,11.817767]
[1748562662004,5.054,2626.0,2625.5,3.808719]
[1748562662541,5.054,2626.0,2625.2,10.0]
[1748562662685,5.054,2626.0,2625.4,18.0]
[1748562662876,0.5054,2625.9,2625.5,3.80869759]
[1748562663222,0.5054,2625.9,2625.1,3.80937869]
[1748562663223,0.9725,2625.8,2624.9,3.80966893]
[1748562663370,3.80874125,2625.6,2624.8,4.8336837]
[1748562663578,0.98212413,2625.6,2625.1,11.80936599]
[1748562663771,0.98212413,2625.6,2625.3,3.80906968]
[1748562663991,0.98212413,2625.6,2625.2,3.80917347]
[1748562664200,0.98212413,2625.6,2625.1,11.80936146]
[1748562664407,5.031,2625.5,2625.2,3.80918534]
[1748562664721,1.0232,2626.5,2625.9,3.80818596]
[1748562665026,5.028,2626.4,2625.9,3.80810617]
[1748562665177,5.5467944,2626.4,2626.0,3.80804776]
[1748562665379,5.022,2626.3,2626.0,3.80804776]
[1748562665632,5.022,2626.2,2626.0,3.80804776]
[1748562665828,5.019,2626.1,2626.0,3.80804776]
[1748562665980,1.0232,2626.8,2626.1,10.0]
[1748562666328,1.0232,2626.8,2626.0,5.59530971]
[1748562666329,5.015,2626.7,2626.4,3.80749314]
[1748562666617,5.015,2626.7,2626.5,3.8073274]
[1748562666787,5.015,2626.7,2626.3,3.80760273]
[1748562666788,5.015,2626.7,2626.4,3.80741878]
[1748562666974,1.0232,2626.8,2626.1,11.80789203]
[1748562667178,5.44400073,2626.7,2626.4,3.80742166]
[1748562667991,5.44400073,2626.7,2626.2,3.8077831]
[1748562668408,5.44400073,2626.7,2626.1,11.80789675]
[1748562668829,5.44400073,2626.7,2625.7,4.8336837]
[1748562668985,3.80742111,2626.5,2625.8,3.80836316]
[1748562669313,6.69877565,2626.4,2625.8,3.80836316]
[1748562669667,6.69877565,2626.4,2625.8,10.0]
[1748562669937,6.69877565,2626.4,2625.7,8.0]
[1748562670083,3.80774658,2626.3,2625.7,8.0]
[1748562670280,10.5063339,2626.4,2625.5,10.0]
[1748562670483,6.02963339,2626.3,2625.6,4.8336837]
[1748562670746,6.02963339,2626.3,2625.8,13.80829747]
[1748562671223,6.02963339,2626.3,2625.8,3.80829747]
[1748562671593,9.8372775,2626.3,2625.8,10.0]
[1748562671795,9.8372775,2626.3,2619.5,2.5543842]
[1748562671796,6.02963339,2626.3,2625.5,10.0]
[1748562671981,0.69739334,2626.2,2625.6,3.80865246]
[1748562672186,4.966,2626.1,2625.6,10.0]
[1748562672884,4.966,2626.1,2625.6,3.80862022]
[1748562673224,0.69739334,2626.2,2625.8,3.80822525]
[1748562673225,4.958,2626.0,2625.8,3.80822525]
[1748562673780,4.958,2626.0,2625.9,3.80821813]
[1748562674025,0.9443,2626.4,2625.6,10.0]
[1748562674339,4.946,2626.3,2625.9,3.80813997]
[1748562674543,4.946,2626.3,2625.8,8.64199579]
[1748562674821,5.53503,2626.3,2625.8,4.8336837]
[1748562675119,5.53503,2626.3,2625.8,3.80830159]
[1748562675324,5.53503,2626.3,2625.8,10.0]
[1748562675507,5.53503,2626.3,2625.7,3.80843951]
[1748562675713,5.53503,2626.3,2625.6,8.0]
[1748562675934,0.647933,2626.2,2625.7,3.80840181]
[1748562676226,0.647933,2626.2,2625.9,3.80821587]
[1748562676735,0.9443,2626.4,2626.2,3.80777492]
[1748562676885,4.926,2626.3,2626.2,3.80777492]
[1748562677085,4.926,2626.3,2626.1,3.80787013]
[1748562677719,0.9443,2626.4,2626.1,3.80787013]
[1748562677929,4.917,2626.3,2626.2,3.8077831]
[1748562678230,1.0204,2626.8,2626.4,3.80742045]
[1748562678445,4.913,2626.7,2626.0,8.0]
[1748562678632,4.913,2626.7,2626.2,3.8077831]
[1748562678924,4.913,2626.7,2626.1,13.80786901]
[1748562679224,4.913,2626.7,2626.3,10.0]
[1748562679442,4.913,2626.7,2626.3,3.80762338]
[1748562680095,4.913,2626.7,2626.3,13.80762338]
[1748562680292,4.913,2626.7,2621.6,7.71949715]
[1748562680293,6.22170043,2626.7,2625.2,3.80923358]
[1748562680519,10.02883922,2626.7,2626.0,3.80800722]
[1748562680725,1.0204,2626.8,2626.2,14.8336837]
[1748562680921,1.0204,2626.8,2626.3,3.80758211]
[1748562680922,4.891,2626.7,2626.3,3.80758211]
[1748562681203,4.891,2626.7,2626.5,3.80731833]
[1748562681404,4.891,2626.7,2626.2,4.8336837]
[1748562681605,4.891,2626.7,2626.5,3.8073287]
[1748562681922,4.891,2626.7,2626.3,3.80756992]
[1748562682253,5.81682073,2626.7,2626.2,3.8077188]
[1748562682631,5.81682073,2626.7,2626.3,3.80762504]
[1748562682948,4.876,2626.6,2626.4,3.80742167]
[1748562683454,4.876,2626.6,2626.3,3.80763601]
[1748562684153,4.876,2626.6,2626.0,0.9953]
[1748562684154,5.46564,2626.6,2626.2,3.8077201]
[1748562684359,5.46564,2626.6,2626.1,3.80779322]
[1748562684554,5.46564,2626.6,2626.1,3.80788958]
[1748562684768,5.46564,2626.6,2626.2,3.80771496]
[1748562685340,4.858,2626.5,2625.9,11.80819655]
[1748562685668,4.858,2626.5,2626.4,3.80749314]
[1748562685870,4.858,2626.5,2626.3,3.80757162]
[1748562686175,4.858,2626.5,2626.2,3.80772377]
[1748562686536,4.858,2626.5,2626.2,3.80777464]
[1748562686731,4.82741637,2626.8,2626.2,13.80777464]
[1748562686932,5.66242237,2626.7,2626.2,13.80777464]
[1748562687181,5.66242237,2626.7,2626.3,3.80762987]
[1748562687389,3.34680734,2626.9,2626.7,3.80696631]
[1748562687534,3.34680734,2626.9,2626.2,4.8336837]
[1748562687535,4.841,2626.6,2626.5,3.80734818]
[1748562689371,3.34680734,2626.9,2626.6,3.80711527]
[1748562689575,4.824,2626.8,2626.3,3.8076308]
[1748562689808,4.824,2626.8,2626.5,3.80733808]
[1748562690019,4.824,2626.8,2626.2,10.0]
[1748562690020,5.64108073,2626.8,2626.2,10.0]
[1748562690302,5.64108073,2626.8,2626.0,8.0]
[1748562690303,4.80972328,2626.7,2626.0,3.80796265]
[1748562690469,4.80972328,2626.7,2626.1,3.80791506]
[1748562690796,4.80972328,2626.7,2625.6,3.80859562]
[1748562690797,1.0026,2626.7,2625.6,3.80859562]
[1748562691099,1.0026,2626.7,2625.4,4.75902415]
[1748562691100,3.80772646,2626.3,2625.5,10.0]
[1748562691301,8.62178575,2626.2,2625.7,10.0]
[1748562691457,6.52642676,2626.1,2625.6,10.0]
[1748562691657,4.81,2626.0,2625.5,20.0]
[1748562691863,4.81,2626.0,2625.5,10.0]
[1748562692195,8.61808102,2626.0,2625.5,10.0]
[1748562692394,4.81,2626.0,2625.5,10.0]
[1748562692696,4.81,2626.0,2624.8,10.0]
[1748562692697,3.80917049,2625.3,2624.8,10.0]
[1748562692882,4.46067531,2625.9,2624.7,3.80985799]
[1748562692883,0.956,2625.1,2624.7,3.80985799]
[1748562693197,0.956,2625.1,2624.6,8.0]
[1748562693358,0.956,2625.6,2625.1,3.8093657]
[1748562693556,4.795,2625.5,2624.8,4.7736881]
[1748562693757,0.5751,2625.4,2624.8,8.58349403]
[1748562693986,0.5751,2625.4,2624.9,3.80966822]
[1748562694289,0.5751,2625.4,2625.0,10.0]
[1748562694475,0.5751,2625.4,2625.0,13.80952054]
[1748562694812,4.786,2625.3,2625.0,17.254503]
[1748562695012,1.67664268,2625.9,2625.3,13.80907192]
[1748562695174,4.784,2625.8,2625.5,3.8087867]
[1748562695372,4.784,2625.8,2625.4,3.80887216]
[1748562695683,4.784,2625.8,2625.3,3.80903642]
[1748562696071,4.784,2625.8,2625.5,3.80878642]
[1748562696374,4.784,2625.8,2625.3,3.80903642]
[1748562696375,1.0242,2625.9,2625.4,10.0]
[1748562696577,4.773,2625.8,2625.7,13.8085082]
[1748562696893,1.0202,2626.2,2625.8,3.80831745]
[1748562697086,4.771,2626.1,2625.8,3.80831745]
[1748562697330,1.0202,2626.2,2625.5,13.80873078]
[1748562697526,4.767,2626.1,2626.0,3.80807311]
[1748562697847,4.765,2626.1,2626.0,3.80793174]
[1748562698656,4.76,2626.1,2626.0,3.80807311]
[1748562698808,8.14358045,2626.9,2626.2,3.80766666]
[1748562698993,8.5649803,2626.8,2626.1,13.80788052]
[1748562699323,4.758,2626.8,2626.3,3.80763214]
[1748562699521,4.758,2626.8,2626.3,13.80763214]
[1748562699723,1.29016632,2626.8,2626.3,3.80763214]
[1748562699933,4.749,2626.7,2626.3,10.0]
[1748562700136,8.5561255,2626.7,2626.0,11.80807311]
[1748562700309,3.80722804,2626.6,2626.0,8.0]
[1748562700838,8.5561459,2626.7,2626.0,11.80800502]
[1748562701136,1.28382157,2626.6,2626.0,11.80800502]
[1748562701340,4.33680734,2626.9,2626.6,3.80711877]
[1748562701525,4.33680734,2626.9,2626.4,3.80737313]
[1748562701710,4.33680734,2626.9,2626.5,3.80733723]
[1748562701916,4.736,2626.8,2626.1,8.0]
[1748562702096,4.736,2626.8,2626.3,3.80754138]
[1748562702300,4.736,2626.8,2626.3,13.80754138]
[1748562702939,4.736,2626.8,2626.3,3.80754138]
[1748562703139,4.728,2626.7,2626.3,3.80754138]
[1748562703344,4.728,2626.7,2626.5,3.80732162]
[1748562704241,4.719,2626.6,2626.2,10.0]
[1748562704445,4.719,2626.6,2626.5,3.80734818]
[1748562704799,0.99,2626.9,2626.7,3.80704901]
[1748562705009,4.715,2626.8,2626.7,10.0]
[1748562705235,4.715,2626.8,2626.7,3.80705828]
[1748562705445,4.71,2626.8,2626.7,3.80705828]
[1748562705751,1.0187,2627.4,2626.9,3.80669367]
[1748562705909,4.708,2627.3,2626.7,10.0]
[1748562706105,4.706,2627.2,2626.8,3.806836]
[1748562706310,1.0187,2627.4,2627.0,3.80662009]
[1748562706531,4.702,2627.3,2627.0,3.80662009]
[1748562707047,1.0187,2627.4,2627.0,3.80662009]
[1748562707242,4.698,2627.2,2626.9,10.0]
[1748562707482,1.0187,2627.4,2626.9,2.90010689]
[1748562707773,4.694,2627.3,2627.2,3.80633373]
[1748562707937,1.0187,2627.4,2627.2,3.80633373]
[1748562708264,4.692,2627.3,2627.2,3.80627536]
[1748562708827,1.41184448,2628.6,2627.3,10.0]
[1748562709154,1.41184448,2628.6,2628.0,3.80510718]
[1748562709155,4.685,2628.5,2628.0,3.80510718]
[1748562709486,0.964,2628.6,2627.8,10.0]
[1748562709682,4.683,2628.5,2628.3,3.80466739]